[Event "68th Warsaw-ch-A 2019"]
[Site "Warsaw"]
[Date "2019.11.19"]
[Round "9.9"]
[White "Siekierski, Pawel"]
[Black "Derylo, Kamil"]
[Result "0-1"]
[ECO "D37"]
[WhiteElo "1959"]
[BlackElo "1969"]
[Annotator "NA"]
[PlyCount "144"]
[EventDate "2019.11.14"]
[EventType "swiss"]
[EventCountry "POL"]
[SourceTitle "playchess.com"]
[Source "ChessBase"]
[SourceQuality "1"]
[TimeControl "5400+30"]

1. d4 {[%emt 0:00:00]} Nf6 {[%emt 0:00:00]} 2. c4 {[%emt 0:00:00]} e6 {[%emt 0:00:00]} 3. Nf3 {[%emt 0:00:00]} d5 {[%emt 0:00:00]} 4. Nc3 {[%emt 0:00:00]} Nbd7 {[%emt 0:00:00]} 5. Bg5 {[%emt 0:00:35]} c6 {[%emt 0:00:00]} 6. cxd5 {[%emt 0:00:11]} exd5 {[%emt 0:00:01]} 7. Qc2 {[%emt 0:00:25]} h6 {[%emt 0:00:17]} 8. Bh4 {[%emt 0:02:02]} g5 {[%emt 0:00:09]} 9. Bg3 {[%emt 0:00:09]} Nh5 {[%emt 0:00:05]} 10. e3 {[%emt 0:00:54]} Nxg3 {[%emt 0:00:07]} 11. hxg3 {[%emt 0:00:11]} Bg7 {[%emt 0:00:43]} 12. Bd3 {[%emt 0:00:44]} Nb6 {[%emt 0:00:30]} 13. b3 {[%emt 0:06:25]} Be6 {[%emt 0:02:31]} 14. Rc1 {[%emt 0:00:27]} Qe7 {[%emt 0:02:15]} 15. Bf5 {[%emt 0:01:51]} g4 {[%emt 0:06:35]} 16. Ne5 {[%emt 0:16:14]} Bxe5 {[%emt 0:01:39]} 17. dxe5 {[%emt 0:00:05]} Nd7 {[%emt 0:01:41]} 18. Ne2 {[%emt 0:07:18]} Nxe5 {[%emt 0:03:18]} 19. Bxe6 {[%emt 0:06:03]} fxe6 {[%emt 0:04:03]} 20. Rh5 {[%emt 0:01:01]} Qf6 {[%emt 0:02:57]} 21. Nf4 {[%emt 0:03:42]} O-O-O {[%emt 0:05:09]} 22. Qc3 {[%emt 0:01:10]} d4 {[%emt 0:10:15]} 23. exd4 {[%emt 0:05:46]} Rxd4 {[%emt 0:03:00]} 24. Qe3 {[%emt 0:03:45]} Nd7 {[%emt 0:06:17]} (24... Nf7 $17 25. Kf1 (25. Nxe6 $2 Rd7 $19) 25... Ng5) 25. Ne2 {[%emt 0:08:40]} Rd5 {[%emt 0:02:27]} 26. Rxd5 {[%emt 0:00:19]} exd5 {[%emt 0:00:04]} 27. Qxa7 {[%emt 0:00:35]} Re8 {[%emt 0:01:36]} 28. Kf1 {[%emt 0:03:15]} Qb2 {[%emt 0:09:00]} 29. Re1 {[%emt 0:01:44]} Re4 {[%emt 0:03:02]} 30. Nf4 {[%emt 0:08:57]} Rxe1+ {[%emt 0:00:22]} 31. Kxe1 {[%emt 0:00:04]} Qc3+ {[%emt 0:02:32]} 32. Kd1 {[%emt 0:02:02]} Nc5 {[%emt 0:03:24]} 33. Qa3 {[%emt 0:09:09] [#]} Ne4 $1 {[%emt 0:04:23]} ({Not} 33... Qd4+ 34. Ke2 $17) 34. Qf8+ {[%emt 0:01:53]} Kc7 {[%emt 0:01:01]} 35. Qg7+ {[%emt 0:00:49]} Qxg7 {[%emt 0:01:37]} 36. Ne6+ {[%emt 0:00:03]} Kb6 {[%emt 0:00:46]} 37. Nxg7 $19 {[%emt 0:00:05]} Kc5 {[%emt 0:01:37]} 38. Nf5 {[%emt 0:01:31]} h5 {[%emt 0:00:41]} 39. f3 {[%emt 0:02:14]} Nc3+ {[%emt 0:00:13]} 40. Kd2 {[%emt 0:00:10]} Nxa2 {[%emt 0:00:14]} 41. Ng7 {[%emt 0:00:12]} Kd4 {[%emt 0:04:09]} 42. Nxh5 {[%emt 0:00:27]} c5 {[%emt 0:01:02]} 43. fxg4 {[%emt 0:03:30]} c4 {[%emt 0:00:46]} 44. g5 {[%emt 0:00:57]} c3+ {[%emt 0:03:18]} 45. Kc2 {[%emt 0:00:07]} Nb4+ {[%emt 0:00:14]} 46. Kc1 {[%emt 0:00:08]} Ke5 {[%emt 0:01:50]} 47. g6 {[%emt 0:01:20]} Ke6 {[%emt 0:00:43]} 48. g4 {[%emt 0:00:33]} d4 {[%emt 0:01:00]} 49. g5 {[%emt 0:00:14]} d3 {[%emt 0:01:18]} 50. Nf4+ {[%emt 0:00:05]} Ke7 {[%emt 0:00:11]} 51. Nxd3 {[%emt 0:02:24]} Nxd3+ {[%emt 0:00:02]} 52. Kc2 {[%emt 0:00:04]} Nf4 {[%emt 0:01:29]} 53. Kxc3 {[%emt 0:00:05]} Nxg6 {[%emt 0:00:45]} 54. Kb4 {[%emt 0:00:11]} Kd6 {[%emt 0:00:27]} 55. Kb5 {[%emt 0:00:18]} Kc7 {[%emt 0:00:05]} 56. Kc5 {[%emt 0:00:35]} Nf4 {[%emt 0:01:18]} 57. Kb5 {[%emt 0:00:43]} Ng6 {[%emt 0:04:40]} 58. Kc5 {[%emt 0:00:13]} Ne7 {[%emt 0:01:12]} 59. Kb5 {[%emt 0:00:37]} b6 {[%emt 0:05:17]} 60. Kc4 {[%emt 0:01:34]} Kc6 {[%emt 0:00:28]} 61. g3 {[%emt 0:00:45]} Ng6 {[%emt 0:00:08]} 62. Kb4 {[%emt 0:00:31]} Ne5 {[%emt 0:01:11]} 63. Kc3 {[%emt 0:00:27]} Kc5 {[%emt 0:00:28]} 64. Kb2 {[%emt 0:01:14]} Kb4 {[%emt 0:00:20]} 65. Kc2 {[%emt 0:00:25]} b5 {[%emt 0:00:47]} 66. Kb2 {[%emt 0:01:18]} Ng6 {[%emt 0:00:05]} 67. Kc2 {[%emt 0:00:25]} Ka3 {[%emt 0:00:18]} 68. Kc3 {[%emt 0:00:16]} b4+ {[%emt 0:00:05]} 69. Kc4 {[%emt 0:00:20]} Nf8 {[%emt 0:00:07]} 70. Kd5 {[%emt 0:01:35]} Kxb3 {[%emt 0:00:13]} 71. Ke5 {[%emt 0:00:08]} Kc3 {[%emt 0:00:23]} 72. Kf6 {[%emt 0:00:02]} Nh7+ {[%emt 0:00:19]} 0-1

[Event "68th Warsaw-ch-A 2019"]
[Site "Warsaw"]
[Date "2019.11.19"]
[Round "9.10"]
[White "Urbaniak, Karol"]
[Black "Korcz, Daniel"]
[Result "0-1"]
[ECO "C55"]
[WhiteElo "1812"]
[BlackElo "1807"]
[Annotator "NA"]
[PlyCount "116"]
[EventDate "2019.11.14"]
[EventType "swiss"]
[EventCountry "POL"]
[SourceTitle "playchess.com"]
[Source "ChessBase"]
[SourceQuality "1"]
[TimeControl "5400+30"]

1. e4 {[%emt 0:07:25]} e5 {[%emt 0:00:00]} 2. Nf3 {[%emt 0:01:40]} Nc6 {[%emt 0:00:00]} 3. d4 {[%emt 0:00:11]} exd4 {[%emt 0:00:07]} 4. Bc4 {[%emt 0:00:08]} Nf6 {[%emt 0:00:20]} 5. e5 {[%emt 0:00:08]} Ng4 {[%emt 0:01:50]} 6. Bxf7+ {[%emt 0:01:47]} Kxf7 {[%emt 0:01:06]} 7. Ng5+ {[%emt 0:00:09]} Kg8 {[%emt 0:01:19]} 8. Qxg4 {[%emt 0:00:19]} h6 {[%emt 0:01:04] C56: Two Knights: 4 d4 exd4 5 0-0 Nxe4} 9. Nf3 {[%emt 0:02:00]} Bb4+ {[%emt 0:14:37]} (9... d6 10. Qe4 dxe5 11. Nxe5 Nxe5 12. Qxe5 Qd6 13. Bf4 Qxe5+ 14. Bxe5 Bf5 15. Bxd4 Re8+ 16. Be3 Bxc2 {½-½ (53) Bruaset,E (2181)-Pantzar,M (2376) Gothenburg 2019}) 10. c3 {[%emt 0:00:38]} d6 $146 {[%emt 0:12:05]} ({Predecessor:} 10... dxc3 11. bxc3 Ba5 12. Qc4+ Kf8 13. Ba3+ d6 14. O-O Qe8 15. exd6 cxd6 16. Bxd6+ {1-0 (46) Wodzynski,M (1800)-Wodzynska,Z (1531) Chelmza 2009}) 11. e6 $17 {[%emt 0:00:12]} (11. Qg3 $11 dxc3 12. bxc3) 11... dxc3 {[%emt 0:01:33]} 12. O-O {[%emt 0:02:43]} Qf6 {[%emt 0:06:49]} 13. Nxc3 {[%emt 0:02:25]} Bxe6 {[%emt 0:02:14]} 14. Qg3 {[%emt 0:05:30]} Bxc3 {[%emt 0:03:39]} 15. bxc3 {[%emt 0:00:03]} Kh7 {[%emt 0:01:23]} 16. Rb1 {[%emt 0:11:35]} b6 {[%emt 0:03:17]} 17. Re1 {[%emt 0:04:24]} Bxa2 {[%emt 0:07:51]} 18. Rb5 {[%emt 0:07:09]} Rhe8 {[%emt 0:03:10]} 19. Be3 {[%emt 0:05:53]} Bf7 {[%emt 0:05:13]} 20. Qh3 {[%emt 0:02:54]} Ne5 {[%emt 0:12:22]} 21. Ng5+ {[%emt 0:02:08]} Kg8 {[%emt 0:02:46]} 22. Ne4 {[%emt 0:00:08]} Qg6 {[%emt 0:01:46]} 23. Ng3 {[%emt 0:01:14]} Be6 {[%emt 0:03:10]} 24. Qh4 {[%emt 0:01:18]} a6 {[%emt 0:01:48]} 25. Rbb1 {[%emt 0:02:43]} Qg4 {[%emt 0:01:38]} 26. Qxg4 {[%emt 0:00:02]} Nxg4 {[%emt 0:00:04]} 27. Bf4 {[%emt 0:01:03]} Ba2 {[%emt 0:01:50]} 28. Ra1 {[%emt 0:00:29]} Rxe1+ {[%emt 0:00:53]} 29. Rxe1 {[%emt 0:00:02]} Kf7 {[%emt 0:00:39]} 30. Nf5 {[%emt 0:00:43]} Be6 {[%emt 0:00:25]} 31. Nd4 {[%emt 0:00:38]} Bd7 {[%emt 0:00:19]} 32. f3 {[%emt 0:00:56]} Nf6 {[%emt 0:00:20]} 33. Kf2 {[%emt 0:00:15]} Nd5 {[%emt 0:00:31]} 34. Bd2 {[%emt 0:00:22]} b5 {[%emt 0:00:33]} 35. Rb1 {[%emt 0:00:12]} c5 {[%emt 0:01:29]} 36. Nc2 {[%emt 0:01:09]} Bf5 {[%emt 0:00:39]} 37. Rb2 {[%emt 0:00:02]} Bxc2 {[%emt 0:00:15]} 38. Rxc2 {[%emt 0:00:00]} Ke6 {[%emt 0:00:08]} 39. Rc1 {[%emt 0:00:17]} Nb6 {[%emt 0:02:26]} 40. Re1+ {[%emt 0:00:08]} Kd7 {[%emt 0:00:28]} 41. g4 {[%emt 0:00:07]} Nc4 {[%emt 0:00:23]} 42. Bc1 {[%emt 0:00:05]} a5 {[%emt 0:00:46]} 43. Re4 {[%emt 0:00:21]} a4 {[%emt 0:01:30]} 44. Rf4 {[%emt 0:00:23]} Ne5 {[%emt 0:00:42]} 45. Ke2 {[%emt 0:00:49]} a3 {[%emt 0:00:18]} 46. h4 {[%emt 0:00:32]} a2 {[%emt 0:00:29]} 47. Bb2 {[%emt 0:00:02]} a1=Q {[%emt 0:00:24]} 48. Bxa1 {[%emt 0:00:01]} Rxa1 {[%emt 0:00:01]} 49. g5 {[%emt 0:00:32]} Ra2+ {[%emt 0:00:51]} 50. Ke3 {[%emt 0:00:23]} hxg5 {[%emt 0:00:18]} 51. hxg5 {[%emt 0:00:11]} Rg2 {[%emt 0:02:19]} 52. Rf5 {[%emt 0:00:42]} g6 {[%emt 0:01:10]} 53. Rf8 {[%emt 0:00:02]} Rxg5 {[%emt 0:00:46]} 54. f4 {[%emt 0:00:01]} Nc4+ {[%emt 0:01:14]} 55. Kf2 {[%emt 0:00:19]} Rf5 {[%emt 0:00:37]} 56. Rg8 {[%emt 0:00:01]} Rxf4+ {[%emt 0:00:13]} 57. Ke2 {[%emt 0:00:10]} Ne5 {[%emt 0:00:30]} 58. Rg7+ {[%emt 0:00:06]} Kc6 {[%emt 0:00:10]} 0-1